Cogmind - Beta 16 @@@ ROGUE MODE // 2026.01.14 @ 20:26:54 Player: Oneirical Result: Destroyed by Triborg with Siege Cannon Performance ------------- Evolutions (0) 0 Regions Visited (3) 600 Robots Destroyed (11) 55 Value Destroyed (219) 219 Prototype IDs (0) 0 Alien Tech Used (0) 0 Bonus (-12) -12 TOTAL SCORE: 862 Bonus ------- Friendly Fire -12 Cogmind --------- Core Integrity 0/250 Matter 290/300 Energy 100/100 System Corruption 0% Temperature Cool (0) Movement Walking (120) Location -9/Scraptown Parts ------- > --- POWER (1) -------- Subdweller Power Source > --- PROPULSION (2) --- Armored Leg > --- UTILITY (2) ------ Disposable Heat Sink Small Storage Unit > --- WEAPON (2) ------- Plasma Cutter > --- INVENTORY (8) ---- Lightning Gun Particle Cannon Plasma Cannon Advanced Assault Cannon Rocket Launcher Mini Grenade Launcher Mining Laser Peak State ------------ > --- POWER ------------ Subdweller Power Source > --- PROPULSION ------- Armored Leg > --- UTILITY ---------- Disposable Heat Sink Small Storage Unit > --- WEAPON ----------- Plasma Cutter > --- INVENTORY -------- Lightning Gun Particle Cannon Plasma Cannon Advanced Assault Cannon Rocket Launcher Mini Grenade Launcher Mining Laser [Rating: 13] Favorites ----------- Power Light Ion Engine Engine Light Ion Engine Propulsion Light Treads Treads Light Treads Leg Armored Leg Wheel Subdweller Monowheel Utility Small Storage Unit Device Seismic Detector Storage Small Storage Unit Weapon Small Laser Energy Gun Small Laser Ballistic Gun Light Assault Rifle Special Weapon Plasma Cutter Build | -11 -10 -10 -9 ------- Run | Yrd Mat Sub Scr Slots Evolved . | . . . . Power . | . . . . Propulsion . | . . . . Utility . | . . . . Weapon . | . . . . Parts Attached 15 | 8 . 4 3 Power 3 | 1 . 1 1 Engine 3 | 1 . 1 1 Core . | . . . . Reactor . | . . . . Propulsion 4 | 2 . 1 1 Treads 2 | 2 . . . Leg 1 | . . . 1 Wheel 1 | . . 1 . Hover . | . . . . Flight . | . . . . Utility 4 | 3 . 1 . Device 3 | 2 . 1 . Storage 1 | 1 . . . Processor . | . . . . Hackware . | . . . . Protection . | . . . . Artifact . | . . . . Weapon 4 | 2 . 1 1 Energy Gun 1 | 1 . . . Energy Cannon . | . . . . Ballistic Gun 2 | 1 . 1 . Ballistic Cannon . | . . . . Launcher . | . . . . Special Weapon 1 | . . . 1 Impact Weapon . | . . . . Slashing Weapon . | . . . . Piercing Weapon . | . . . . Special Melee Weapon . | . . . . Unidentified Prototypes . | . . . . Parts Lost 8 | . 2 6 . Power 1 | . 1 . . Propulsion 3 | . . 3 . Utility 1 | . . 1 . Weapon 3 | . 1 2 . Highest Loss Streak 4 | . 2 4 . To Critical Strikes . | . . . . Average Backups 2 | . 1 1 6 Power . | . . . . Propulsion . | . . . . Utility . | . . . . Weapon 2 | . 1 1 5 Tool/Special . | . . . . Unused Backups 7 | . . . 7 Power . | . . . . Propulsion . | . . . . Utility . | . . . . Weapon 7 | . . . 7 Tool/Special . | . . . . Average Slot Usage (%) 76 | . 92 80 52 Engine 9 | . 10 4 12 Treads 17 | . 28 21 . Leg 4 | . . . 12 Device 13 | . 14 12 14 Storage 13 | . 14 14 11 Energy Gun 9 | . 14 13 . Ballistic Gun 6 | . 10 9 . Peak Build Rating 13 | 9 7 12 13 Average Rating 7 | 6 6 7 10 On Entrance 3 | . 7 5 2 Avg Prop Armor Cover (%) 13 | . . 13 . Naked Turns . | . . . . Heaviest Build 15 | 11 11 15 12 Greatest Support 40 | 40 40 40 16 Greatest Overweight (x) 4 | . . 4 . Average Overweight (x) . | . . . . Largest Inventory Capacity 8 | 8 8 8 8 Average Capacity 7 | 7 8 7 7 Most Carried 8 | 1 1 4 8 Average Carried 2 | . 1 1 6 Final Capacity 8 | 8 8 5 8 Final Carried 7 | 1 1 4 7 Class Distribution -------------------- 100% | Mutant Dominant Class ---------------- Mutant | -10/Materials Mutant | -10/Subcaves Mutant | -9/Scraptown Resources | -11 -10 -10 -9 ----------- Run | Yrd Mat Sub Scr Matter Collected 398 | 169 46 153 30 Remotely . | . . . . Salvage Created 313 | 94 123 96 . Parts 24 | 13 7 4 . Haulers Intercepted . | . . . . Recyclers Shooed . | . . . . Parts Field Recycled . | . . . . Retrieved Matter . | . . . . Parts Self-Destructed 10 | . . 10 . Prevented . | . . . . Parts Restored . | . . . . Kills | -11 -10 -10 -9 ------- Run | Yrd Mat Sub Scr Combat Hostiles Destroyed 7 | . 5 2 . Guns 7 | . 5 2 . Classes Destroyed 4 | 1 2 1 . Tunneler 4 | 4 . . . Swarmer 3 | . 3 . . Grunt 2 | . 2 . . Subdweller 2 | . . 2 . Best Kill Streak 3 | 3 3 2 . Combat Bots Only 3 | . 3 2 . Max Kills in Single Turn 1 | 1 1 1 . Gunslinging . | . . . . Exploded . | . . . . Melee . | . . . . Uniques/NPCs Destroyed . | . . . . Combat | -11 -10 -10 -9 -------- Run | Yrd Mat Sub Scr Hostile Shots Fired 64 | . 29 34 1 Missed 20 | . 10 10 . Hits 44 | . 19 24 1 Projectile 44 | . 19 24 1 AOE 1 | . 1 . . Critical Strikes 2 | . 1 1 . Damage Taken 1002 | . 348 558 96 Core 314 | . 68 150 96 Absorbed by Shields . | . . . . Core Remaining (%) 100 | 100 . . . Volleys Fired 40 | 9 18 13 . Largest 2 | 2 2 2 . Hottest 68 | 60 60 68 . Shots Fired 77 | 18 33 26 . Gun 77 | 18 33 26 . Cannon . | . . . . Launcher . | . . . . Special . | . . . . Kinetic 37 | 9 15 13 . Thermal 40 | 9 18 13 . Explosive . | . . . . Electromagnetic . | . . . . Robot Hit Streak 8 | 6 8 6 . Robot Miss Streak 2 | 1 1 2 . Penetration Max . | . . . . Secondary Targets 1 | . . 1 . Max Gunslinging Chain 1 | . . 1 . Shots Hit Robots 56 | 13 25 18 . Core Hits 21 | 7 9 5 . Critical Kills . | . . . . Critical Parts Destroyed . | . . . . Critical Strikes . | . . . . Melee Attacks . | . . . . Impact . | . . . . Slashing . | . . . . Piercing . | . . . . Sneak Attacks . | . . . . Combat Hostiles . | . . . . Follow-up Attacks . | . . . . Damage Inflicted 590 | 115 247 228 . Guns 590 | 115 247 228 . Cannons . | . . . . Explosions . | . . . . Melee . | . . . . Ramming . | . . . . Kinetic 271 | 40 100 131 . Thermal 319 | 75 147 97 . Explosive . | . . . . Electromagnetic . | . . . . Impact . | . . . . Slashing . | . . . . Piercing . | . . . . Highest Corruption . | . . . . Average Corruption . | . . . . Corruption Purged . | . . . . Corruption Blocked . | . . . . Overload Shots . | . . . . Overflow Damage . | . . . . Projectiles . | . . . . Explosions . | . . . . Melee . | . . . . Knockbacks . | . . . . Impact . | . . . . Kinetic . | . . . . Secondary . | . . . . Self-Inflicted Damage . | . . . . Shots . | . . . . Rammed . | . . . . Targets Rammed . | . . . . Kicked . | . . . . Crushed . | . . . . Highest Temperature 203 | 20 203 4 . Average Temperature 77 | 14 106 4 . Received Heat Transfer 303 | . 144 159 . Siege Activations . | . . . . Martial Activations . | . . . . Shielding Activations . | . . . . Robots Disrupted . | . . . . Combat Hostiles . | . . . . Robots Corrupted . | . . . . Combat Hostiles . | . . . . Parts Fried . | . . . . Impact Corruptions . | . . . . Robots Melted . | . . . . Combat Hostiles . | . . . . Parts Melted . | . . . . Heat Transferred 725 | 175 325 225 . Parts Sabotaged . | . . . . Parts Stolen . | . . . . Parts Stripped . | . . . . Power Chain Reactions . | . . . . Alert | -11 -10 -10 -9 ------- Run | Yrd Mat Sub Scr Maximum Alert Level . | . . . . Low Security (%) 100 | 100 100 . . Level 1 . | . . . . Level 2 . | . . . . Level 3 . | . . . . Level 4 . | . . . . Level 5 . | . . . . High Security . | . . . . Max Security . | . . . . Peak Influence 70 | 5 70 . . Initial . | . . . . Average 9 | . 11 . . Influence Increases 151 | 20 131 . . Destroy 0b10 Robot/C 100 | . 100 . . Destroy 0b10 Robot/NC 20 | 20 . . . Destroy Leader 20 | . 20 . . Successful Hack 11 | . 11 . . Influence Decreases 151 | 20 131 . . Time Decay 131 | 20 111 . . Lost Part 20 | . 20 . . Squads Dispatched 2 | . 2 . . Investigation 1 | . 1 . . Extermination . | . . . . Reinforcement 1 | . 1 . . Assault . | . . . . Garrison . | . . . . Intercept . | . . . . Searches Triggered . | . . . . Construction Impeded . | . . . . Haulers Reinforced . | . . . . Active Scanning Responses . | . . . . Cargo Convoy Interrupts . | . . . . Stealth | -11 -10 -10 -9 --------- Run | Yrd Mat Sub Scr Distress Signals 1 | . 1 . . Communications Jammed . | . . . . Distress Signals . | . . . . Times Spotted 16 | . 8 4 4 Peak Tracking Total 4 | . 4 2 . Tactical Retreats . | . . . . Traps | -11 -10 -10 -9 ------- Run | Yrd Mat Sub Scr Traps Triggered . | . . . . Indirectly . | . . . . Trap Hack Attempts . | . . . . Triggered . | . . . . Disarmed . | . . . . Reprogrammed . | . . . . Reused . | . . . . Traps Extracted . | . . . . Installed . | . . . . Triggered . | . . . . Machines | -11 -10 -10 -9 ---------- Run | Yrd Mat Sub Scr Machines Disabled 1 | . . . 1 Max in Single Turn 1 | . . . 1 Machines Repaired . | . . . . Machines Dismantled 1 | . . . 1 Machines Sabotaged . | . . . . Overloaded Fab Kills . | . . . . Hacking | -11 -10 -10 -9 --------- Run | Yrd Mat Sub Scr Machines Accessed 3 | . 3 . . Terminals 3 | . 3 . . Fabricators . | . . . . Repair Stations . | . . . . Recycling Units . | . . . . Scanalyzers . | . . . . Garrison Access . | . . . . Total Hacks 7 | . 7 . . Successful 3 | . 3 . . Failed 4 | . 4 . . Catastrophic . | . . . . Database Lockouts . | . . . . Manual 2 | . 2 . . Terminals 7 | . 7 . . Fabricators . | . . . . Repair Stations . | . . . . Recycling Units . | . . . . Scanalyzers . | . . . . Garrison Access . | . . . . Terminal Hacks 3 | . 3 . . Zone Layout 3 | . 3 . . Fabricator Hacks . | . . . . Repair Station Hacks . | . . . . Recycling Unit Hacks . | . . . . Scanalyzer . | . . . . Garrison Access Hacks . | . . . . Unauthorized Hacks . | . . . . Terminals . | . . . . Fabricators . | . . . . Repair Stations . | . . . . Recycling Units . | . . . . Scanalyzers . | . . . . Garrison Access . | . . . . Data Cores Recovered . | . . . . Used . | . . . . Hacking Detections 1 | . 1 . . Full Trace Events . | . . . . Feedback Events . | . . . . Feedback Blocked . | . . . . Robot Schematics Acquired . | . . . . Robots Built . | . . . . Authchips . | . . . . Time . | . . . . Total Robot Build Rating . | . . . . Part Schematics Acquired . | . . . . Parts Built . | . . . . Authchips . | . . . . Time . | . . . . Total Part Build Rating . | . . . . Part Studies Acquired . | . . . . Parts Repaired . | . . . . Time . | . . . . Parts Recycled . | . . . . Recycled Matter . | . . . . Retrieved Matter . | . . . . Retrieved Components . | . . . . Parts Scanalyzed . | . . . . Part Schematics Acquired . | . . . . Parts Damaged . | . . . . Bothacking | -11 -10 -10 -9 ------------ Run | Yrd Mat Sub Scr Used RIF Installer . | . . . . Robots Hacked . | . . . . Non-combat . | . . . . Combat . | . . . . Robot Hacks Applied . | . . . . Relay Couplers Released . | . . . . Fabnet Peak Effective % . | . . . . Robots Rewired . | . . . . Allies Hacked . | . . . . Hacks Repelled . | . . . . Allies | -11 -10 -10 -9 -------- Run | Yrd Mat Sub Scr Total Allies . | . . . . Largest Group . | . . . . Highest-Rated Group . | . . . . Highest-Rated Ally . | . . . . Total Orders . | . . . . Ally Attacks . | . . . . Total Damage . | . . . . Kills . | . . . . Allies Corrupted . | . . . . Allies Melted . | . . . . Intel | -11 -10 -10 -9 ------- Run | Yrd Mat Sub Scr Active Infowar (turns) 825 | 79 571 175 . Terrain 18 | 18 . . . Seismic 807 | 61 571 175 . Robot Analysis Total . | . . . . Derelict Logs Recovered 1 | . . . 1 Drone Launches . | . . . . Drone Recoveries . | . . . . Exploration | -11 -10 -10 -9 ------------- Run | Yrd Mat Sub Scr Turns Passed 1445 | 140 571 304 430 Spaces Moved 781 | 67 157 188 369 Core 105 | 4 . 14 87 Treads 320 | 63 157 100 . Legs 282 | . . . 282 Wheels 74 | . . 74 . Hover . | . . . . Flight . | . . . . Fastest Speed 50 | 50 160 50 50 Average Speed 126 | 153 160 135 103 Slowest Speed 250 | 160 160 250 120 Overloaded Moves . | . . . . Propulsion Burnouts . | . . . . Robots Hopped . | . . . . Potential Cave-ins . | . . . . Cave-ins Triggered . | . . . . Exploration Rate (%) 20 | 5 28 17 31 Regions Visited 3 Branch Regions 2 Pre-discovered Areas 1 | . . . 1 Known Exits Taken . | . . . . Unknown Exits Taken 3 | 1 1 1 . Scrap Searched 4 | . . 1 3 Spaces Dug . | . . . . Terrain Destroyed . | . . . . Melee . | . . . . Projectile . | . . . . AOE . | . . . . Terrain Rammed . | . . . . Walls Destroyed . | . . . . Machines Disabled . | . . . . Actions | -11 -10 -10 -9 --------- Run | Yrd Mat Sub Scr Total 1135 | 84 447 211 393 Wait 276 | . 273 3 . Move 778 | 66 156 187 369 Hop . | . . . . Pick Up 10 | 1 . 2 7 Fast Attach 11 | 7 . 3 1 Attach 4 | . . 1 3 Detach 2 | . . 2 . Swap 1 | 1 . . . Drop 1 | . . . 1 Fire 40 | 9 18 13 . Melee . | . . . . Ram . | . . . . Kick . | . . . . Crush . | . . . . Escape Stasis . | . . . . Rewire . | . . . . Trap . | . . . . Miscellaneous 12 | . . . 12 Route ------- -11/Scrapyard -10/Materials -10/Subcaves -9/Scraptown (discovered 1 exit: [*Fac]) History --------- Turn | Location | Event 25 | -11/Scrapyard | Discovered new exit (range 14) 141 | -11/Scrapyard | Entered Materials 313 | -10/Materials | Build established: Mutant 697 | -10/Materials | Discovered new exit (range 5) 712 | -10/Materials | Entered Subcaves 713 | -10/Subcaves | Approached by a straggling Scientist 882 | -10/Subcaves | Core integrity fell below 50% 898 | -10/Subcaves | Core integrity fell below 20% 968 | -10/Subcaves | A swath of the cavern ceiling suddenly collapsed 971 | -10/Subcaves | Scientist uncovered a shortcut to Scraptown 1016 | -10/Subcaves | Entered Scraptown 1040 | -9/Scraptown | Lost 4 parts (2n2w) 1158 | -9/Scraptown | Visited Assassins FH 1186 | -9/Scraptown | Visited Shadow of the Wyrm 1207 | -9/Scraptown | Visited Fellowship of the Rings 1237 | -9/Scraptown | Scanned Subdweller tech in exchange for log data 1240 | -9/Scraptown | Learned location of Testing (-2) 1260 | -9/Scraptown | Discovered new exit (range 5) 1443 | -9/Scraptown | Attacked by Scraptown defenders 1446 | -9/Scraptown | Destroyed by Triborg with Siege Cannon Last Messages --------------- 01239_ ZD-5X7(c): "Thank you! May your journeys be full of scrap!" 01240_ Acquired derelict log, extracted data. World map updated: -2/Testing. 01260_ EXIT=FOUND 01298_ Sub. Power Source shoots sparks and powers down. 01298_ Searching scrap... 01298_ Found Flight Unit. 01298_ Found Rocket Launcher. 01298_ Found 40 Matter. 01299_ Acquired 30 matter. 01300_ Acquired Rocket Launcher. 01410_ Dismantling UFD HQ Gate with Plasma Cutter. 01443_ UFD HQ Gate dismantled. 01443_ ANNOUNCEMENT: Intruder alert! Defend Scraptown! 01446_ Triborg activates siege mode. 01446_ Penetrated by Siege Slug. Map ----- +----------------------------------------------------+ | #??????????????????????????? | | #??????????????????????????? | | #??????????????????????????? | | #??????????????????????????? | | ############# #??????????????????????????? | | ????????????# #??????????????????????????? | | ????????????# #??????????????????????????? | | ??????####### #??????????????????????????? | | ????###""" # #??????????????????????????? | | ??###"" # #??????????????????????????? | | ??# " # ###????????????????????????? | | ??# " # ""#"???????????????????????? | | ??# " # """"???????????????????????? | | ??# " # ""##???????????????????????? | | ??# " # j###????????????????????????? | | ??# " # #####??????????????????????? | | ??# " ??????????????????????? | | ??# " # ??????????????????????? | | ??###"" # "??????????????????????? | | ????###""" # "??????????????????????? | | ??########### "??????????????????????? | | ? TT "??????????????????????? | | ? TT "??????????????????????? | | ? % ""?????????????????????? | | ? """????????????????????? | | ? r r@" "????????????????????? | | ?? # ""????????????????????? | | ?? # "????????????????????? | | ??? #?""????????????????????? | | ???############ ### ####???????????????????????? | | ????????????? ?# #??????????????????????????? | | ???????????# || ?# #??????????????????????????? | | ???????????# """??# #??????????????????????????? | | ???????????# | |??# #??????????????????????????? | | ???????????# """??# #??????????????????????????? | | ???????????# ?| ??# #??????????????????????????? | | ??????????????????# #??????????????????????????? | | ??????????????????# #??????????????????????????? | | ??????????????????# #??????????????????????????? | | ??????????????????# #??????????????????????????? | | ??????????????????# #??????????????????????????? | | ?????????????###### #??????????????????????????? | | ???????????"""""""" #??????????????????????????? | | ??????????""" """"" #??????????????????????????? | | ??##????"""" " "" #??????????????????????????? | | ?? ? #??????????????????????????? | | ## #????"" "" "" " #??????????????????????????? | | "" "#?????""""""""" #??????????????????????????? | | "" "#????????"""""" #??????????????????????????? | | "" "#????????###### #??????????????????????????? | +----------------------------------------------------+ Best States ------------- Heat Dissipation 25 Coolant Potential 50 Energy Generation 15 Energy Capacity 200 Matter Stores 300 Matter Capacity 300 Sight Range 16 Terrain Scan Range 16 Terrain Scan Density 10 Evasion (%) 55 Recoil Reduction 2 Item Schematics ----------------- None Robot Schematics ------------------ None Fabricated ------------ Nothing Repaired ---------- Nothing Studied --------- None Alien Tech Used ----------------- None Achievements -------------- Nice Directions, Buddy Challenges ------------ None Game ------ Seed FlyingBiometalInsulator Manual? 0 Play Time 00:08:50 Cumulative 60.8 hours Start 2026.01.14 @ 20:19:45 End 2026.01.14 @ 20:26:54 Sessions 1 Manual Loads 0 Difficulty Rogue Special Mode None Game No. 48 Rogue 46 Adventurer 2 Explorer 0 Win Type - Total 1 Types 0/0/0/1/0/0/0/0/0/0 Lore% 39 Gallery% 55 Achievement% 46 Wizard Run 0 Options --------- Layout 2 ASCII 0 Keyboard 1 Movement Numpad Keybinds 0 Fullscreen 1 Font 32/Terminus Map View 50x49 Zoom Use 0% Tactical HUD 1 Map Filters NONE Filters NONE Steam 0 RUN: 767f9019-abf5-48d5-8bd7-3108f24b9160